[Event "Live Chess"]
[Site "Chess.com"]
[Date "2024.06.02"]
[Round "-"]
[White "elis06"]
[Black "JanMur7"]
[Result "1-0"]
[WhiteElo "2342"]
[BlackElo "2291"]
[TimeControl "300"]
[EndTime "4:56:52 PDT"]
[Termination "elis06 won by resignation"]

1. d4 {[%clk 0:04:55.1]} 1... Nf6 {[%clk 0:04:57.8]} 2. c4 {[%clk 0:04:53.1]}
2... a6 {[%clk 0:04:56.1]} 3. Nc3 {[%clk 0:04:51.1]} 3... b5 {[%clk 0:04:54.8]}
4. cxb5 {[%clk 0:04:41.8]} 4... axb5 {[%clk 0:04:54.7]} 5. Nxb5 {[%clk
0:04:38.5]} 5... e5 {[%clk 0:04:53.4]} 6. e3 {[%clk 0:04:27.6]} 6... Ne4 {[%clk
0:04:49.2]} 7. Nc3 {[%clk 0:04:21.8]} 7... Bb4 {[%clk 0:04:47.1]} 8. Bd2 {[%clk
0:04:20.5]} 8... Nxd2 {[%clk 0:04:43.5]} 9. Qxd2 {[%clk 0:04:19.6]} 9... O-O
{[%clk 0:04:38.7]} 10. dxe5 {[%clk 0:04:18]} 10... Nc6 {[%clk 0:04:37.7]} 11.
Nf3 {[%clk 0:04:16.2]} 11... Qe7 {[%clk 0:04:37.1]} 12. Bd3 {[%clk 0:04:14.9]}
12... Nxe5 {[%clk 0:04:32.6]} 13. Nxe5 {[%clk 0:04:14]} 13... Qxe5 {[%clk
0:04:31.3]} 14. O-O {[%clk 0:04:13.4]} 14... Bb7 {[%clk 0:04:22.8]} 15. f4
{[%clk 0:04:12.1]} 15... Qf6 {[%clk 0:04:16.3]} 16. Qc2 {[%clk 0:04:06.5]} 16...
h6 {[%clk 0:04:12.7]} 17. a3 {[%clk 0:04:02.1]} 17... Bc5 {[%clk 0:04:02.9]} 18.
Rae1 {[%clk 0:03:50.2]} 18... Rfe8 {[%clk 0:03:54.9]} 19. Ne4 {[%clk 0:03:31.5]}
19... Bxe4 {[%clk 0:03:51.2]} 20. Bxe4 {[%clk 0:03:30.5]} 1-0

[Event "Live Chess"]
[Site "Chess.com"]
[Date "2024.06.02"]
[Round "-"]
[White "McFim"]
[Black "MaksymYurii"]
[Result "1-0"]
[WhiteElo "1719"]
[BlackElo "999"]
[TimeControl "300"]
[EndTime "4:56:57 PDT"]
[Termination "McFim won by checkmate"]

1. e4 {[%clk 0:04:58.4]} 1... e5 {[%clk 0:04:54.5]} 2. Nf3 {[%clk 0:04:57]} 2...
Nc6 {[%clk 0:04:53.1]} 3. Bb5 {[%clk 0:04:55.6]} 3... d6 {[%clk 0:04:48.2]} 4.
d4 {[%clk 0:04:54.1]} 4... Bd7 {[%clk 0:04:46.5]} 5. d5 {[%clk 0:04:50.9]} 5...
Nd4 {[%clk 0:04:36.3]} 6. Bxd7+ {[%clk 0:04:48.9]} 6... Qxd7 {[%clk 0:04:34]} 7.
Nxd4 {[%clk 0:04:48.8]} 7... exd4 {[%clk 0:04:30.1]} 8. Qxd4 {[%clk 0:04:48.1]}
8... Nf6 {[%clk 0:04:25.8]} 9. f3 {[%clk 0:04:43.7]} 9... c6 {[%clk 0:04:22.3]}
10. c4 {[%clk 0:04:41.8]} 10... Be7 {[%clk 0:04:20.5]} 11. O-O {[%clk
0:04:40.4]} 11... c5 {[%clk 0:04:18.5]} 12. Qd3 {[%clk 0:04:34]} 12... a6 {[%clk
0:03:55]} 13. Nc3 {[%clk 0:04:31.6]} 13... b5 {[%clk 0:03:53.5]} 14. cxb5 {[%clk
0:04:29.9]} 14... axb5 {[%clk 0:03:52.2]} 15. Qxb5 {[%clk 0:04:28.7]} 15... Qxb5
{[%clk 0:03:50.1]} 16. Nxb5 {[%clk 0:04:28.6]} 16... O-O {[%clk 0:03:37.3]} 17.
a4 {[%clk 0:04:25.5]} 17... Rfb8 {[%clk 0:03:28.4]} 18. Bd2 {[%clk 0:04:16.5]}
18... h5 {[%clk 0:03:16.1]} 19. Rfb1 {[%clk 0:04:06.6]} 19... Bd8 {[%clk
0:03:06.9]} 20. b4 {[%clk 0:04:04]} 20... cxb4 {[%clk 0:03:04.4]} 21. Bxb4
{[%clk 0:03:57.2]} 21... Ne8 {[%clk 0:02:58]} 22. Bxd6 {[%clk 0:03:30.6]} 22...
Nxd6 {[%clk 0:02:52.8]} 23. Nxd6 {[%clk 0:03:30.5]} 23... Rxb1+ {[%clk
0:02:51.7]} 24. Rxb1 {[%clk 0:03:28.9]} 24... Rxa4 {[%clk 0:02:50.6]} 25. Rb8
{[%clk 0:03:21.3]} 25... Ra1+ {[%clk 0:02:47.3]} 26. Kf2 {[%clk 0:03:19.6]}
26... Ra2+ {[%clk 0:02:45.8]} 27. Kg3 {[%clk 0:03:17.7]} 27... Kh7 {[%clk
0:02:38.6]} 28. Rxd8 {[%clk 0:03:15.7]} 28... g5 {[%clk 0:02:37.7]} 29. Nxf7
{[%clk 0:03:12.3]} 29... Kg6 {[%clk 0:02:35.7]} 30. Ne5+ {[%clk 0:03:09.6]}
30... Kf6 {[%clk 0:02:32.7]} 31. Nc6 {[%clk 0:03:02.6]} 31... h4+ {[%clk
0:02:17.3]} 32. Kh3 {[%clk 0:03:00.3]} 32... Kg6 {[%clk 0:02:07.7]} 33. Rg8+
{[%clk 0:02:55.7]} 33... Kh5 {[%clk 0:02:06]} 34. Ne5 {[%clk 0:02:50.2]} 34...
Kh6 {[%clk 0:02:00.9]} 35. Rh8+ {[%clk 0:02:43.8]} 35... Kg7 {[%clk 0:01:58.4]}
36. Re8 {[%clk 0:02:36.9]} 36... Kf6 {[%clk 0:01:53.8]} 37. Re6+ {[%clk
0:02:34.6]} 37... Kg7 {[%clk 0:01:49.3]} 38. Rg6+ {[%clk 0:02:33.2]} 38... Kh7
{[%clk 0:01:44.3]} 39. Rxg5 {[%clk 0:02:33.1]} 39... Kh6 {[%clk 0:01:39.7]} 40.
Kxh4 {[%clk 0:02:30.1]} 40... Kh7 {[%clk 0:01:35.7]} 41. h3 {[%clk 0:02:26.9]}
41... Ra6 {[%clk 0:01:33]} 42. g4 {[%clk 0:02:23.5]} 42... Rh6+ {[%clk
0:01:29.5]} 43. Kg3 {[%clk 0:02:21.4]} 43... Ra6 {[%clk 0:01:28]} 44. h4 {[%clk
0:02:19.5]} 44... Ra3 {[%clk 0:01:24.8]} 45. Nd7 {[%clk 0:02:14.7]} 45... Kh6
{[%clk 0:01:20.2]} 46. Rg8 {[%clk 0:02:07.9]} 46... Ra7 {[%clk 0:01:14.3]} 47.
Nf6 {[%clk 0:02:05.7]} 47... Ra6 {[%clk 0:01:11.9]} 48. g5# {[%clk 0:02:01.9]}
1-0

[Event "Live Chess"]
[Site "Chess.com"]
[Date "2024.06.02"]
[Round "-"]
[White "defenderalist"]
[Black "Ferrarifan27"]
[Result "1-0"]
[WhiteElo "1549"]
[BlackElo "2158"]
[TimeControl "300"]
[EndTime "4:56:59 PDT"]
[Termination "defenderalist won by checkmate"]

1. e4 {[%clk 0:04:59.2]} 1... e5 {[%clk 0:04:55.9]} 2. f4 {[%clk 0:04:58.2]}
2... exf4 {[%clk 0:04:50.8]} 3. Nf3 {[%clk 0:04:57.6]} 3... Be7 {[%clk
0:04:47.6]} 4. Bc4 {[%clk 0:04:56.5]} 4... d6 {[%clk 0:04:44]} 5. d4 {[%clk
0:04:54.1]} 5... g5 {[%clk 0:04:41.8]} 6. O-O {[%clk 0:04:49.9]} 6... Nc6 {[%clk
0:04:37.7]} 7. Nc3 {[%clk 0:04:44]} 7... Bg4 {[%clk 0:04:33.2]} 8. h3 {[%clk
0:04:37.5]} 8... Bh5 {[%clk 0:04:31.7]} 9. Qe1 {[%clk 0:04:33.5]} 9... Bxf3
{[%clk 0:04:23.4]} 10. Rxf3 {[%clk 0:04:31.9]} 10... Nxd4 {[%clk 0:04:21.9]} 11.
Rd3 {[%clk 0:04:24.7]} 11... Nxc2 {[%clk 0:04:20.1]} 12. Qd1 {[%clk 0:04:18.3]}
12... Nxa1 {[%clk 0:04:18]} 13. Qh5 {[%clk 0:04:16.2]} 13... Kd7 {[%clk
0:04:02.6]} 14. Qxf7 {[%clk 0:04:08]} 14... Kc8 {[%clk 0:04:00.8]} 15. Be6+
{[%clk 0:03:55.5]} 15... Kb8 {[%clk 0:03:55]} 16. Nd5 {[%clk 0:03:54.3]} 16...
Qf8 {[%clk 0:03:42.3]} 17. Qh5 {[%clk 0:03:40.8]} 17... Nf6 {[%clk 0:03:33.1]}
18. Qd1 {[%clk 0:03:27.2]} 18... Nxd5 {[%clk 0:03:26.3]} 19. Bxd5 {[%clk
0:03:24.5]} 19... Bf6 {[%clk 0:03:22.3]} 20. Bd2 {[%clk 0:02:56.7]} 20... Bxb2
{[%clk 0:03:19.4]} 21. Qb1 {[%clk 0:02:54.7]} 21... Qg7 {[%clk 0:03:15.4]} 22.
Bc3 {[%clk 0:02:47.4]} 22... Qf8 {[%clk 0:02:58.8]} 23. Bxb2 {[%clk 0:02:41.2]}
23... Nc2 {[%clk 0:02:40.6]} 24. Bxh8 {[%clk 0:02:13.2]} 24... b6 {[%clk
0:02:30.6]} 25. Bxa8 {[%clk 0:01:59.8]} 25... Kxa8 {[%clk 0:02:29.4]} 26. Qxc2
{[%clk 0:01:55.1]} 26... Qxh8 {[%clk 0:02:28.5]} 27. Qxc7 {[%clk 0:01:52.2]}
27... Qa1+ {[%clk 0:02:25.9]} 28. Kh2 {[%clk 0:01:48.7]} 28... a5 {[%clk
0:02:14.6]} 29. Rxd6 {[%clk 0:01:29.2]} 29... f3 {[%clk 0:02:09.1]} 30. Rd8#
{[%clk 0:01:26.7]} 1-0

[Event "Live Chess"]
[Site "Chess.com"]
[Date "2024.06.02"]
[Round "-"]
[White "lateforthesky"]
[Black "LL220284LL"]
[Result "0-1"]
[WhiteElo "2037"]
[BlackElo "2500"]
[TimeControl "300"]
[EndTime "4:57:29 PDT"]
[Termination "LL220284LL won by resignation"]

1. e4 {[%clk 0:04:54.5]} 1... c6 {[%clk 0:04:57]} 2. Nf3 {[%clk 0:04:53]} 2...
d6 {[%clk 0:04:56.2]} 3. d4 {[%clk 0:04:50.9]} 3... g6 {[%clk 0:04:55.6]} 4. Be3
{[%clk 0:04:48.3]} 4... Bg7 {[%clk 0:04:55]} 5. Qd2 {[%clk 0:04:47]} 5... Nd7
{[%clk 0:04:53.7]} 6. Nc3 {[%clk 0:04:44.5]} 6... a6 {[%clk 0:04:49.5]} 7. Bd3
{[%clk 0:04:37.8]} 7... b5 {[%clk 0:04:45.5]} 8. O-O {[%clk 0:04:35.5]} 8... Bb7
{[%clk 0:04:43.2]} 9. Rae1 {[%clk 0:04:31.5]} 9... c5 {[%clk 0:04:40.4]} 10. d5
{[%clk 0:04:24.5]} 10... Qa5 {[%clk 0:04:17.6]} 11. a3 {[%clk 0:04:21.7]} 11...
Rc8 {[%clk 0:04:08.6]} 12. h3 {[%clk 0:04:17.3]} 12... c4 {[%clk 0:03:54.4]} 13.
Be2 {[%clk 0:04:15.6]} 13... Nc5 {[%clk 0:03:52.3]} 14. Bd4 {[%clk 0:04:04.9]}
14... Nf6 {[%clk 0:03:48.6]} 15. Bd1 {[%clk 0:03:45]} 15... O-O {[%clk
0:03:42.6]} 16. Qe3 {[%clk 0:03:04.3]} 16... Qd8 {[%clk 0:03:33.7]} 17. Nh2
{[%clk 0:02:54.6]} 17... e6 {[%clk 0:03:11.6]} 18. dxe6 {[%clk 0:02:38]} 18...
fxe6 {[%clk 0:03:09.1]} 19. e5 {[%clk 0:02:28.8]} 19... Nd5 {[%clk 0:03:04.6]}
20. Nxd5 {[%clk 0:02:26.8]} 20... Bxd5 {[%clk 0:03:04.5]} 21. exd6 {[%clk
0:02:22.3]} 21... Qxd6 {[%clk 0:03:00.8]} 22. Ng4 {[%clk 0:02:12.4]} 22... Qf4
{[%clk 0:02:44.4]} 23. Bxc5 {[%clk 0:02:03.5]} 23... Qxe3 {[%clk 0:02:33.7]} 24.
Bxe3 {[%clk 0:02:01.2]} 24... h5 {[%clk 0:02:27.3]} 25. Nh2 {[%clk 0:01:56.2]}
25... Bxb2 {[%clk 0:02:23.3]} 26. Bf3 {[%clk 0:01:48.5]} 26... Bxa3 {[%clk
0:02:18.2]} 27. Ra1 {[%clk 0:01:47.2]} 27... b4 {[%clk 0:02:06.6]} 28. Rfd1
{[%clk 0:01:36.3]} 28... Rfd8 {[%clk 0:01:46.3]} 29. Bxd5 {[%clk 0:01:31.4]}
29... Rxd5 {[%clk 0:01:42.8]} 30. Rxd5 {[%clk 0:01:28.4]} 30... exd5 {[%clk
0:01:42.7]} 31. Nf3 {[%clk 0:01:27.1]} 31... a5 {[%clk 0:01:38.5]} 32. Nd4
{[%clk 0:01:23.3]} 32... a4 {[%clk 0:01:32.7]} 33. Kf1 {[%clk 0:01:21.7]} 33...
Ra8 {[%clk 0:01:29.9]} 34. Ke2 {[%clk 0:00:43.1]} 34... Bb2 {[%clk 0:01:28]} 35.
Ra2 {[%clk 0:00:39]} 35... a3 {[%clk 0:01:24.4]} 36. Kd1 {[%clk 0:00:35.2]}
36... Kf7 {[%clk 0:01:06.6]} 37. Nb5 {[%clk 0:00:26.1]} 37... b3 {[%clk
0:01:02.6]} 38. cxb3 {[%clk 0:00:24.3]} 38... cxb3 {[%clk 0:01:02.5]} 39. Rxb2
{[%clk 0:00:17.9]} 39... axb2 {[%clk 0:01:02.4]} 40. Nc3 {[%clk 0:00:16.7]}
40... Ra1+ {[%clk 0:01:01.8]} 41. Kd2 {[%clk 0:00:15.7]} 41... Rc1 {[%clk
0:01:00.3]} 0-1

[Event "Live Chess"]
[Site "Chess.com"]
[Date "2024.06.02"]
[Round "-"]
[White "Grace6363"]
[Black "RichardABates"]
[Result "0-1"]
[WhiteElo "1147"]
[BlackElo "2340"]
[TimeControl "300"]
[EndTime "4:58:13 PDT"]
[Termination "RichardABates won by resignation"]

1. d4 {[%clk 0:04:56.8]} 1... Nf6 {[%clk 0:04:57.7]} 2. c4 {[%clk 0:04:56.2]}
2... e6 {[%clk 0:04:54.4]} 3. Nf3 {[%clk 0:04:54.8]} 3... Bb4+ {[%clk
0:04:52.8]} 4. Bd2 {[%clk 0:04:53.4]} 4... a5 {[%clk 0:04:51.7]} 5. a3 {[%clk
0:04:52.2]} 5... Bxd2+ {[%clk 0:04:49.7]} 6. Nbxd2 {[%clk 0:04:51.6]} 6... O-O
{[%clk 0:04:48.2]} 7. e4 {[%clk 0:04:49.7]} 7... d5 {[%clk 0:04:45.2]} 8. e5
{[%clk 0:04:46.1]} 8... Ne4 {[%clk 0:04:43.5]} 9. Bd3 {[%clk 0:04:41.9]} 9...
Nxd2 {[%clk 0:04:33]} 10. Qxd2 {[%clk 0:04:39.1]} 10... dxc4 {[%clk 0:04:31.8]}
11. Bxc4 {[%clk 0:04:37.3]} 11... b6 {[%clk 0:04:29.6]} 12. O-O {[%clk
0:04:29.2]} 12... Bb7 {[%clk 0:04:26.9]} 13. Qe3 {[%clk 0:04:22.5]} 13... Bxf3
{[%clk 0:04:23.1]} 14. gxf3 {[%clk 0:04:21.3]} 14... Nc6 {[%clk 0:04:17.6]} 15.
Kh1 {[%clk 0:04:17.3]} 15... Qxd4 {[%clk 0:04:14.9]} 16. Qxd4 {[%clk 0:03:57.5]}
16... Nxd4 {[%clk 0:04:12.1]} 17. Kg2 {[%clk 0:03:40.4]} 17... Rfd8 {[%clk
0:04:09.3]} 18. Rad1 {[%clk 0:03:36.4]} 18... Nf5 {[%clk 0:04:05.3]} 19. Bd3
{[%clk 0:03:25.9]} 19... c5 {[%clk 0:03:43.8]} 20. Be4 {[%clk 0:03:19]} 20...
Rab8 {[%clk 0:03:39.2]} 21. Bxf5 {[%clk 0:03:06.9]} 21... exf5 {[%clk
0:03:37.7]} 22. f4 {[%clk 0:03:03.4]} 22... Kf8 {[%clk 0:03:34.9]} 23. Kf3
{[%clk 0:03:00.9]} 23... Ke7 {[%clk 0:03:33.2]} 24. h4 {[%clk 0:03:00.1]} 24...
Rxd1 {[%clk 0:03:29.9]} 25. Rxd1 {[%clk 0:02:58.8]} 25... Rd8 {[%clk 0:03:28.4]}
26. Rg1 {[%clk 0:02:49.9]} 26... g6 {[%clk 0:03:26.6]} 27. h5 {[%clk 0:02:44.4]}
27... Rd3+ {[%clk 0:03:23.6]} 28. Kg2 {[%clk 0:02:41]} 28... a4 {[%clk
0:03:18.3]} 29. hxg6 {[%clk 0:02:34.9]} 29... hxg6 {[%clk 0:03:16.9]} 30. Kh2
{[%clk 0:02:33.6]} 30... Rf3 {[%clk 0:03:13.9]} 31. b4 {[%clk 0:02:09.1]} 31...
cxb4 {[%clk 0:03:10.1]} 32. axb4 {[%clk 0:02:07.7]} 32... Rxf4 {[%clk
0:03:07.3]} 33. b5 {[%clk 0:02:01.8]} 33... Rxf2+ {[%clk 0:03:05.1]} 0-1

[Event "Live Chess"]
[Site "Chess.com"]
[Date "2024.06.02"]
[Round "-"]
[White "juniortay"]
[Black "missedJariChance"]
[Result "1-0"]
[WhiteElo "2355"]
[BlackElo "1356"]
[TimeControl "300"]
[EndTime "4:58:14 PDT"]
[Termination "juniortay won by checkmate"]

1. e4 {[%clk 0:04:57.9]} 1... c5 {[%clk 0:04:58.9]} 2. Nf3 {[%clk 0:04:57]} 2...
e6 {[%clk 0:04:57.5]} 3. d4 {[%clk 0:04:35.6]} 3... cxd4 {[%clk 0:04:52]} 4. Bg5
{[%clk 0:04:33.9]} 4... Be7 {[%clk 0:04:48.9]} 5. Bxe7 {[%clk 0:04:32.5]} 5...
Qxe7 {[%clk 0:04:46.8]} 6. Qxd4 {[%clk 0:04:32.1]} 6... Nf6 {[%clk 0:04:32.3]}
7. Nc3 {[%clk 0:04:28.2]} 7... Nc6 {[%clk 0:04:30.2]} 8. Qd2 {[%clk 0:04:27.2]}
8... O-O {[%clk 0:04:26.9]} 9. O-O-O {[%clk 0:04:26.4]} 9... a6 {[%clk
0:04:22.6]} 10. Qd6 {[%clk 0:04:23.7]} 10... Re8 {[%clk 0:03:54.9]} 11. Be2
{[%clk 0:04:21.1]} 11... Nb4 {[%clk 0:03:49.5]} 12. a3 {[%clk 0:04:12]} 12...
Nc6 {[%clk 0:03:43.2]} 13. h3 {[%clk 0:04:08.2]} 13... Qxd6 {[%clk 0:03:30.8]}
14. Rxd6 {[%clk 0:04:05.2]} 14... b5 {[%clk 0:03:29.8]} 15. Rhd1 {[%clk
0:04:02.8]} 15... Bb7 {[%clk 0:03:26.9]} 16. e5 {[%clk 0:03:59]} 16... Nh5
{[%clk 0:02:52.9]} 17. Rxd7 {[%clk 0:03:50.9]} 17... Rab8 {[%clk 0:02:46.9]} 18.
g3 {[%clk 0:03:36.7]} 18... g6 {[%clk 0:02:42.1]} 19. Rc7 {[%clk 0:03:25.4]}
19... Red8 {[%clk 0:02:19.5]} 20. Rdd7 {[%clk 0:03:07.2]} 20... Rxd7 {[%clk
0:02:11.2]} 21. Rxd7 {[%clk 0:03:07.1]} 21... Ng7 {[%clk 0:02:09.3]} 22. Ne4
{[%clk 0:02:54]} 22... Bc8 {[%clk 0:01:46.1]} 23. Nf6+ {[%clk 0:02:48.4]} 23...
Kh8 {[%clk 0:01:39.5]} 24. Rxf7 {[%clk 0:02:44]} 24... Nf5 {[%clk 0:01:35.5]}
25. Rxh7# {[%clk 0:02:38.1]} 1-0

[Event "Live Chess"]
[Site "Chess.com"]
[Date "2024.06.02"]
[Round "-"]
[White "ClassyChameleon"]
[Black "MovebyMove"]
[Result "0-1"]
[WhiteElo "1556"]
[BlackElo "2486"]
[TimeControl "300"]
[EndTime "4:58:33 PDT"]
[Termination "MovebyMove won by resignation"]

1. e4 {[%clk 0:04:58.9]} 1... e5 {[%clk 0:04:57.4]} 2. Nf3 {[%clk 0:04:58.5]}
2... Nc6 {[%clk 0:04:56]} 3. d4 {[%clk 0:04:56.4]} 3... exd4 {[%clk 0:04:54.3]}
4. Nxd4 {[%clk 0:04:56.3]} 4... Bc5 {[%clk 0:04:52.7]} 5. Be3 {[%clk 0:04:54.5]}
5... Bb6 {[%clk 0:04:47.5]} 6. Bc4 {[%clk 0:04:51.3]} 6... Nf6 {[%clk 0:04:45]}
7. Nc3 {[%clk 0:04:48.9]} 7... O-O {[%clk 0:04:41.2]} 8. O-O {[%clk 0:04:41.1]}
8... d6 {[%clk 0:04:37.7]} 9. Qf3 {[%clk 0:04:37]} 9... Nxd4 {[%clk 0:04:33.2]}
10. Bxd4 {[%clk 0:04:35.9]} 10... Bxd4 {[%clk 0:04:32.2]} 11. Rad1 {[%clk
0:04:34.2]} 11... Bxc3 {[%clk 0:04:30.7]} 12. bxc3 {[%clk 0:04:33.3]} 12... Qe7
{[%clk 0:04:29.5]} 13. Rd4 {[%clk 0:04:31.4]} 13... Be6 {[%clk 0:04:24.8]} 14.
Bb3 {[%clk 0:04:29.1]} 14... Rfe8 {[%clk 0:04:23.3]} 15. Re1 {[%clk 0:04:25.8]}
15... Bxb3 {[%clk 0:04:06.3]} 16. cxb3 {[%clk 0:04:25.7]} 16... Qe5 {[%clk
0:04:04.6]} 17. h3 {[%clk 0:04:14.5]} 17... d5 {[%clk 0:04:03.3]} 18. Rxd5
{[%clk 0:04:06.4]} 18... Nxd5 {[%clk 0:04:01.1]} 19. exd5 {[%clk 0:04:05.3]}
19... Qxe1+ {[%clk 0:03:59.7]} 0-1

[Event "Live Chess"]
[Site "Chess.com"]
[Date "2024.06.02"]
[Round "-"]
[White "Colm_Buckley"]
[Black "Victor_Bondar"]
[Result "1-0"]
[WhiteElo "1875"]
[BlackElo "1460"]
[TimeControl "300"]
[EndTime "4:58:48 PDT"]
[Termination "Colm_Buckley won by resignation"]

1. d4 {[%clk 0:04:57]} 1... Nf6 {[%clk 0:04:57.6]} 2. c4 {[%clk 0:04:56.3]} 2...
e5 {[%clk 0:04:55.6]} 3. dxe5 {[%clk 0:04:51.5]} 3... Ng4 {[%clk 0:04:54]} 4.
Nf3 {[%clk 0:04:45.5]} 4... Nc6 {[%clk 0:04:52.1]} 5. Nc3 {[%clk 0:04:39]} 5...
Bb4 {[%clk 0:04:47.6]} 6. Qc2 {[%clk 0:04:24.4]} 6... Ngxe5 {[%clk 0:04:44.3]}
7. Nxe5 {[%clk 0:04:21.2]} 7... Nxe5 {[%clk 0:04:42.8]} 8. b3 {[%clk 0:04:16.9]}
8... O-O {[%clk 0:04:35]} 9. Bb2 {[%clk 0:04:15.6]} 9... d6 {[%clk 0:04:33.9]}
10. g3 {[%clk 0:04:06.5]} 10... b6 {[%clk 0:04:24.5]} 11. Bg2 {[%clk 0:04:05.3]}
11... Rb8 {[%clk 0:04:23.6]} 12. O-O {[%clk 0:04:03.4]} 12... Bxc3 {[%clk
0:04:22]} 13. Qxc3 {[%clk 0:04:00.4]} 13... Bb7 {[%clk 0:04:20.9]} 14. Bxb7
{[%clk 0:03:58.6]} 14... Rxb7 {[%clk 0:04:16.9]} 15. f4 {[%clk 0:03:57.7]} 15...
f6 {[%clk 0:03:32.5]} 16. fxe5 {[%clk 0:03:53.6]} 16... dxe5 {[%clk 0:03:27.2]}
17. Rad1 {[%clk 0:03:47.1]} 17... Qe7 {[%clk 0:03:26.1]} 18. Rd5 {[%clk
0:03:37.7]} 18... c5 {[%clk 0:03:24.7]} 19. Rfd1 {[%clk 0:03:32.8]} 19... Rbb8
{[%clk 0:03:07.4]} 20. Qd3 {[%clk 0:03:30]} 20... e4 {[%clk 0:02:52.7]} 21. Qd2
{[%clk 0:03:23.2]} 21... a5 {[%clk 0:02:31.8]} 22. Rd7 {[%clk 0:03:20.3]} 22...
Qe6 {[%clk 0:02:23.8]} 23. Qd5 {[%clk 0:03:12.9]} 23... Qxd5 {[%clk 0:02:21.5]}
24. R1xd5 {[%clk 0:03:08.6]} 24... Rf7 {[%clk 0:02:20.8]} 25. a3 {[%clk
0:02:56.8]} 25... g6 {[%clk 0:02:03.1]} 26. Kf2 {[%clk 0:02:53.9]} 26... f5
{[%clk 0:01:56.5]} 27. Ke3 {[%clk 0:02:49.6]} 27... Kf8 {[%clk 0:01:46.7]} 28.
Kf4 {[%clk 0:02:43.3]} 28... h6 {[%clk 0:01:35.8]} 29. Rxf7+ {[%clk 0:02:31.4]}
29... Kxf7 {[%clk 0:01:26.7]} 30. Ke5 {[%clk 0:02:27.6]} 30... Re8+ {[%clk
0:01:04.1]} 31. Kd6 {[%clk 0:02:23.3]} 31... Re7 {[%clk 0:00:56.7]} 32. Kc6
{[%clk 0:02:16.8]} 32... Re6+ {[%clk 0:00:55]} 33. Rd6 {[%clk 0:02:10.4]} 33...
g5 {[%clk 0:00:50.7]} 34. Rxe6 {[%clk 0:02:06.2]} 34... Kxe6 {[%clk 0:00:47.2]}
35. Kxb6 {[%clk 0:02:05.2]} 35... f4 {[%clk 0:00:43.7]} 36. gxf4 {[%clk
0:01:57.5]} 36... gxf4 {[%clk 0:00:40]} 37. Kxc5 {[%clk 0:01:54.5]} 37... h5
{[%clk 0:00:35.8]} 38. Bd4 {[%clk 0:01:50.8]} 38... h4 {[%clk 0:00:30.8]} 39. b4
{[%clk 0:01:49.6]} 39... axb4 {[%clk 0:00:26.8]} 40. axb4 {[%clk 0:01:47.5]}
40... Ke7 {[%clk 0:00:23.9]} 41. Kd5 {[%clk 0:01:44.2]} 41... Kd7 {[%clk
0:00:20.5]} 42. Kxe4 {[%clk 0:01:42.8]} 1-0

[Event "Live Chess"]
[Site "Chess.com"]
[Date "2024.06.02"]
[Round "-"]
[White "JanMur7"]
[Black "Zhevzh1k7"]
[Result "1-0"]
[WhiteElo "2291"]
[BlackElo "1112"]
[TimeControl "300"]
[EndTime "4:59:07 PDT"]
[Termination "JanMur7 won by checkmate"]

1. c4 {[%clk 0:04:57.7]} 1... d5 {[%clk 0:04:57.8]} 2. cxd5 {[%clk 0:04:56.2]}
2... Qxd5 {[%clk 0:04:56.8]} 3. Nc3 {[%clk 0:04:55.7]} 3... Qd8 {[%clk
0:04:55.7]} 4. Nf3 {[%clk 0:04:53.6]} 4... Nc6 {[%clk 0:04:55.2]} 5. d4 {[%clk
0:04:52.9]} 5... Bf5 {[%clk 0:04:54.1]} 6. d5 {[%clk 0:04:51.3]} 6... Nb8 {[%clk
0:04:50.6]} 7. e4 {[%clk 0:04:49.1]} 7... Bg6 {[%clk 0:04:48.2]} 8. h4 {[%clk
0:04:47.4]} 8... h6 {[%clk 0:04:45.8]} 9. Ne5 {[%clk 0:04:42.8]} 9... Nf6 {[%clk
0:04:38]} 10. Nxg6 {[%clk 0:04:40.3]} 10... fxg6 {[%clk 0:04:36.6]} 11. e5
{[%clk 0:04:37.7]} 11... Nfd7 {[%clk 0:04:33.3]} 12. f4 {[%clk 0:04:30]} 12...
c6 {[%clk 0:04:19.5]} 13. Bd3 {[%clk 0:04:07.9]} 13... cxd5 {[%clk 0:04:07.7]}
14. Bxg6# {[%clk 0:04:05.6]} 1-0

[Event "Live Chess"]
[Site "Chess.com"]
[Date "2024.06.02"]
[Round "-"]
[White "road2gm5000"]
[Black "StoreySniper"]
[Result "0-1"]
[WhiteElo "1115"]
[BlackElo "2497"]
[TimeControl "300"]
[EndTime "4:59:09 PDT"]
[Termination "StoreySniper won by resignation"]

1. e4 {[%clk 0:04:59.4]} 1... d5 {[%clk 0:04:57]} 2. exd5 {[%clk 0:04:59.3]}
2... Nf6 {[%clk 0:04:53.5]} 3. Nf3 {[%clk 0:04:56.4]} 3... c6 {[%clk 0:04:50.4]}
4. dxc6 {[%clk 0:04:54.5]} 4... Nxc6 {[%clk 0:04:49.8]} 5. d4 {[%clk 0:04:52.6]}
5... Bg4 {[%clk 0:04:46.4]} 6. c3 {[%clk 0:04:50.5]} 6... e5 {[%clk 0:04:41.6]}
7. Be3 {[%clk 0:04:41.9]} 7... exd4 {[%clk 0:04:38.2]} 8. Bxd4 {[%clk
0:04:38.5]} 8... Nxd4 {[%clk 0:04:29.6]} 9. Qxd4 {[%clk 0:04:33.8]} 9... Bxf3
{[%clk 0:04:28]} 10. Qxd8+ {[%clk 0:04:30.2]} 10... Rxd8 {[%clk 0:04:24]} 11.
gxf3 {[%clk 0:04:29.8]} 11... Bd6 {[%clk 0:04:04.7]} 12. Bg2 {[%clk 0:04:23.8]}
12... O-O {[%clk 0:04:00.4]} 13. O-O {[%clk 0:04:20.3]} 13... Bf4 {[%clk
0:03:59.2]} 14. Na3 {[%clk 0:04:12.6]} 14... a6 {[%clk 0:03:53.1]} 15. Rfd1
{[%clk 0:04:08.8]} 15... b5 {[%clk 0:03:50.1]} 16. h3 {[%clk 0:04:02.9]} 16...
Nd5 {[%clk 0:03:43.7]} 17. Rd4 {[%clk 0:03:54]} 17... Be5 {[%clk 0:03:42.6]} 18.
Re4 {[%clk 0:03:49.1]} 18... Bf6 {[%clk 0:03:36.5]} 19. Rd1 {[%clk 0:03:42.9]}
19... Nb6 {[%clk 0:03:29.1]} 20. Ree1 {[%clk 0:03:34.3]} 20... Na4 {[%clk
0:03:22.1]} 21. b3 {[%clk 0:03:26.3]} 21... Nxc3 {[%clk 0:03:18.4]} 22. Kh1
{[%clk 0:02:58.1]} 22... Rxd1 {[%clk 0:03:13.2]} 0-1